fUST/lending_fUST_20251101
["ID","MTS","AMOUNT","RATE_DAILY","PERIOD"]
[392771409,1761937832576,-160.0,0.00031625,2]
[392771410,1761937832586,-260.0,0.00032173,2]
[392771412,1761937832596,-260.0,0.00032721,2]
[392771415,1761937832606,-521.06915725,0.00032967,2]
[392771420,1761937832652,-601.47048702,0.00032967,2]
[392771422,1761937832661,-362.3,0.00032999,3]
[392771424,1761937832671,-500.0,0.00032999,4]
[392771426,1761937832681,-553.4,0.00033078,2]
[392771428,1761937832690,-412.0,0.00033078,2]
[392771430,1761937832700,-535.060129,0.00033165,2]
[392771431,1761937832709,-150.0,0.00033216,2]
[392771432,1761937832719,-165.75456915,0.00033343,2]
[392771434,1761937832728,-298.35822448,0.00033343,2]
[392771436,1761937832738,-530.41462129,0.00033343,2]
[392771438,1761937832747,-828.77284577,0.00033343,2]
[392771441,1761937832756,-500.0,0.00033408,3]
[392771443,1761937832766,-1192.23946501,0.00033759,2]
[392771445,1761937832775,-500.0,0.00033956,3]
[392771447,1761937832785,-743.742809,0.00034143,2]
[392771450,1761937832795,-382.0,0.0003422,2]
[392771452,1761937832806,-322.6107,0.00034236,2]
[392771453,1761937832815,-151.0,0.00034236,2]
[392771454,1761937832824,-151.0,0.00034236,2]
[392771455,1761937832834,-151.0,0.00034236,2]
[392771456,1761937832844,-151.0,0.00034236,2]
[392771457,1761937832853,-151.0,0.00034236,2]
[392771458,1761937832863,-151.0,0.00034236,2]
[392771459,1761937832872,-151.12849967,0.00034236,2]
[392771460,1761937832882,-151.0,0.00034236,2]
[392771461,1761937832891,-151.0,0.00034236,2]
[392771462,1761937832900,-151.0,0.00034236,2]
[392771463,1761937832910,-151.0,0.00034236,2]
[392771464,1761937832919,-151.0,0.00034236,2]
[392771465,1761937832929,-151.0,0.00034236,2]
[392771466,1761937832938,-151.0,0.00034236,2]
[392771467,1761937832948,-151.0,0.00034236,2]
[392771468,1761937832957,-151.0,0.00034236,2]
[392771469,1761937832967,-151.0,0.00034236,2]
[392771470,1761937832976,-151.0,0.00034236,2]
[392771471,1761937832985,-151.0,0.00034236,2]
[392771472,1761937832994,-151.0,0.00034236,2]
[392771473,1761937833004,-151.0,0.00034236,2]
[392771474,1761937833013,-381.0,0.00034237,2]
[392771475,1761937833022,-297.58005774,0.0003446,2]
[392771476,1761937833032,-500.0,0.00034461,4]
[392771477,1761937833041,-500.0,0.00034461,4]
[392771478,1761937833052,-381.0,0.00034461,2]
[392771479,1761937833062,-168.83301464,0.00034586,4]
[392771480,1761937833072,-5000.0,0.00035134,3]
[392771481,1761937833082,-334.5472959,0.00035605,2]
[392771482,1761937833091,-385.0,0.00035649,2]
[392771483,1761937833101,-156.756615,0.00035662,5]
[392771484,1761937833110,-5000.0,0.000358,30]
[392771485,1761937833120,-381.0,0.00035842,2]
[392771486,1761937833129,-500.0,0.00035871,7]
[392771487,1761937833138,-381.0,0.00035895,7]
[392771488,1761937833149,-1748.50273514,0.000359,30]
[392771489,1761937833159,-600.0,0.00036,2]
[392771490,1761937833168,-382.0,0.00036038,120]
[392771491,1761937833177,-412.0,0.00036078,2]
[392771492,1761937833186,-4742.5052251,0.000362,120]
[392771493,1761937833195,-481.0,0.00036216,2]
[392771494,1761937833205,-150.0,0.00036216,2]
[392771495,1761937833213,-481.0,0.00036271,2]
[392771496,1761937833223,-1000.0,0.000363,30]
[392771497,1761937833231,-481.0,0.00036326,2]
[392771498,1761937833241,-382.0,0.00036346,7]
[392771499,1761937833250,-600.0,0.00036375,2]
[392771500,1761937833259,-481.0,0.0003638,2]
[392771501,1761937833268,-800.0,0.000364,30]
[392771502,1761937833277,-481.0,0.00036435,2]
[392771503,1761937833286,-180.22,0.0003646,16]
[392771504,1761937833295,-540.66,0.0003647,16]
[392771505,1761937833306,-403.89093407,0.00036479,2]
[392771506,1761937833316,-481.0,0.0003649,2]
[392771507,1761937833325,-500.0,0.0003653,30]
[392771508,1761937833334,-503.56743788,0.0003653,30]
[392771509,1761937833343,-481.0,0.00036545,2]
[392771510,1761937833354,-381.0,0.00036578,7]
[392771511,1761937833362,-302.0,0.00036596,2]
[392771512,1761937833372,-481.0,0.000366,2]
[392771513,1761937833381,-302.0,0.00036601,2]
[392771514,1761937833390,-481.0,0.00036654,2]
[392771515,1761937833400,-156.756615,0.00036657,5]
[392771516,1761937833409,-156.756615,0.0003666,4]
[392771517,1761937833419,-381.0,0.00036673,120]
[392771518,1761937833428,-3040.2,0.000367,30]
[392771519,1761937833438,-481.0,0.00036709,2]
[392771520,1761937833448,-7675.66313487,0.00036719,2]
[392771521,1761937833457,-353.38,0.0003675,10]
[392771522,1761937833466,-29.46631882,0.0003675,10]
[392771523,1761937833479,-265.01368118,0.0003675,10]
[392771524,1761937833488,-600.0,0.0003675,2]
[392771525,1761937833497,-330634.817439,0.0003676,3]
[392771526,1761937833507,-9107.19341504,0.0003676,3]
[392771527,1761937833519,-481.0,0.00036764,2]
[392771528,1761937833528,-1000.0,0.00036769,120]
[392771529,1761937833538,-685000.0,0.0003677,2]
[392771530,1761937833547,-500.0,0.00036773,5]
[392771531,1761937833557,-500.0,0.00036773,5]
[392771532,1761937833567,-500.0,0.00036773,5]
[392771533,1761937833576,-481.0,0.00036819,2]
[392771534,1761937833586,-650.51381536,0.0003686,3]
[392771535,1761937833595,-32308.0,0.0003687,7]
[392771536,1761937833604,-481.0,0.00036874,2]
[392771537,1761937833614,-650.51381536,0.0003689,3]
[392771538,1761937833623,-151.0,0.000369,17]
[392771539,1761937833632,-34628.32,0.000369,14]
[392771540,1761937833641,-481.0,0.00036928,2]
[392771541,1761937833651,-347.84703004,0.00036974,2]
[392771542,1761937833660,-481.0,0.00036983,2]
[392771543,1761937833670,-171.5412445,0.00037012,2]
[392771544,1761937833679,-481.0,0.00037038,2]
[392771545,1761937833689,-481.0,0.00037093,2]
[392771546,1761937833698,-600.0,0.00037125,2]
[392771547,1761937833707,-481.0,0.00037148,2]
[392771548,1761937833716,-156.756615,0.0003719,30]
[392771549,1761937833726,-156.756615,0.000372,10]
[392771550,1761937833735,-481.0,0.00037202,2]
[392771551,1761937833745,-381.0,0.00037242,2]
[392771552,1761937833756,-481.0,0.00037257,2]
[392771553,1761937833860,-150.0,0.00037273,5]
[392771554,1761937833871,-500.0,0.00037273,5]
[392771555,1761937833880,-403.89093407,0.00037276,3]
[392771556,1761937833890,-500.0,0.00037286,30]
[392771557,1761937833900,-156.756615,0.00037287,30]
[392771558,1761937833910,-1482.52514563,0.000373,120]
[392771559,1761937833919,-5000.0,0.000373,3]
[392771560,1761937833929,-481.0,0.00037312,2]
[392771561,1761937833939,-500.77818183,0.00037321,5]
[392771562,1761937833949,-1000.0,0.00037321,5]
[392771563,1761937833958,-501.28867327,0.00037321,5]
[392771564,1761937833967,-4931.65830998,0.0003735,120]
[392771565,1761937833977,-481.0,0.00037367,2]
[392771566,1761937833987,-4508.94,0.000374,14]
[392771567,1761937833996,-403.89093407,0.000374,120]
[392771568,1761937834006,-1500.0,0.000374,24]
[392771569,1761937834016,-481.0,0.00037421,2]
[392771570,1761937834026,-487.58694127,0.00037476,2]
[392771571,1761937834036,-160.0,0.0003749,2]
[392771572,1761937834045,-650.51381536,0.00037491,3]
[392771573,1761937834055,-150.090014,0.000375,2]
[392771574,1761937834065,-600.0,0.000375,2]
[392771575,1761937834074,-156.756615,0.00037501,20]
[392771576,1761937834084,-179.79178502,0.00037501,2]
[392771577,1761937834093,-5148.04952682,0.00037501,2]
[392771578,1761937834102,-500.0,0.00037515,7]
[392771579,1761937834112,-156.756615,0.00037515,20]
[392771580,1761937834121,-168.0,0.00037559,2]
[392771581,1761937834130,-500.0,0.0003756,30]
[392771582,1761937834140,-216.0,0.00037567,7]
[392771583,1761937834149,-500.0,0.00037573,5]
[392771584,1761937834159,-500.0,0.00037573,5]
[392771585,1761937834168,-500.0,0.00037573,5]
[392771586,1761937834178,-500.0,0.00037573,5]
[392771587,1761937834187,-1532672.02682489,0.00037596,20]
[392771588,1761937834200,-5831.91875215,0.00037596,20]
[392771611,1761937838418,-177.0,0.00027658,2]
[392771612,1761937838427,-204.0,0.00029658,2]
[392771614,1761937838436,-231.0,0.00031658,2]
[392771616,1761937838446,-159.4,0.00032237,2]
[392771618,1761937838455,-258.0,0.00033658,120]
[392771619,1761937838464,-199.25,0.0003454,2]
[392771620,1761937838473,-285.0,0.00035658,120]
[392771621,1761937838483,-1480.6486684,0.0003666,2]
[392771622,1761937838492,-239.1,0.00036842,2]
[392771623,1761937838502,-34960.97495138,0.00037596,20]
[392771624,1761937838544,-415958.95629811,0.00037596,20]
[392771660,1761937843430,-100962.93514102,0.0003666,2]
[392771661,1761937844400,-1729.24091009,0.0003666,2]
[392771753,1761938032897,-729.32980937,0.00037596,30]
[392771754,1761938032922,-200.0,0.00037596,30]
[392771755,1761938032945,-500.0,0.00037596,30]
[392771756,1761938032968,-500.0,0.00037596,30]
[392771757,1761938032992,-536.46224757,0.00037596,30]
[392771758,1761938033014,-64247.0,0.00037596,120]
[392771759,1761938033038,-194951.72547269,0.00037596,60]
[392771761,1761938049310,-2736.18,0.000367,30]
[392771762,1761938049337,-161.11387577,0.00036878,120]
[392771763,1761938049363,-1186.02011651,0.000373,120]
[392771764,1761938049387,-156.756615,0.0003756,30]
[392771765,1761938049412,-151.0,0.00037596,31]
[392771766,1761938049435,-151.0,0.00037596,31]
[392771767,1761938049459,-248.47698,0.00037596,31]
[392771768,1761938049483,-312.0,0.00037658,120]
[392771769,1761938049507,-800.0,0.000378,30]
[392771770,1761938049531,-200.0,0.00038,120]
[392771771,1761938049554,-4933.17634891,0.00038,60]
[392771772,1761938049581,-600.0,0.00038265,30]
[392771773,1761938049605,-6000.0,0.000384,120]
[392771774,1761938049629,-1186.02011651,0.000385,120]
[392771775,1761938049655,-212.0,0.00038961,120]
[392771776,1761938049679,-1173.44220617,0.00039,120]
[392771777,1761938049701,-5000.0,0.00039,90]
[392771778,1761938049726,-362759.78939102,0.00039,120]
[392771779,1761938049750,-163.0,0.000392,120]
[392771780,1761938049774,-2736.18,0.000393,30]
[392771781,1761938049799,-1186.02011651,0.000396,120]
[392771782,1761938049822,-339.0,0.00039658,120]
[392771783,1761938049845,-848.61534155,0.000399,30]
[392771784,1761938049868,-171.22649415,0.00039999,31]
[392771785,1761938049891,-500.0,0.00039999,31]
[392771786,1761938049915,-366.37744943,0.00039999,31]
[392771787,1761938049940,-347.88874316,0.00039999,31]
[392771788,1761938049964,-305374.71620531,0.0004,120]
[392771789,1761938053375,-676830.56225474,0.0004,120]
[392771790,1761938053399,-200.0,0.0004,120]
[392771791,1761938053423,-200.0,0.0004,30]
[392771792,1761938053447,-22769.43774526,0.0004,120]
[392771794,1761938057898,-649739.52326908,0.0004,120]
[392771795,1761938057923,-2498.29993188,0.0004,120]
[392771796,1761938057946,-40238.20306593,0.0004,120]
[392771797,1761938057981,-1387.81226492,0.00040658,120]
[392771798,1761938058008,-1186.02011651,0.000408,120]
[392771799,1761938058032,-169.55,0.00041096,120]
[392771800,1761938058057,-204.18439083,0.000411,120]
[392771801,1761938058082,-204.18,0.000411,120]
[392771802,1761938058105,-173.97,0.000411,120]
[392771803,1761938058129,-202.96599662,0.000411,120]
[392771804,1761938058153,-202.96,0.000411,120]
[392771805,1761938058178,-366.0,0.00041658,120]
[392771806,1761938058204,-200.0,0.00042,120]
[392771807,1761938058229,-156.21798369,0.00042,120]
[392771808,1761938058256,-1186.02011651,0.00042,120]
[392771809,1761938058285,-720.0,0.00042091,90]
[392771810,1761938058314,-1790.37570095,0.000424,120]
[392771811,1761938058339,-301.73172963,0.00042528,60]
[392771812,1761938058364,-2736.18,0.000426,30]
[392771813,1761938058388,-1975.65468762,0.000427,120]
[392771814,1761938058412,-285.96092153,0.00043,120]
[392771815,1761938058435,-3436.92425569,0.00043,60]
[392771816,1761938058458,-1387.0935,0.0004322,30]
[392771817,1761938058483,-163.0,0.000434,120]
[392771818,1761938058506,-3306.83328686,0.000435,120]
[392771819,1761938058530,-393.0,0.00043658,120]
[392771820,1761938058553,-1000.0,0.000438,90]
[392771821,1761938058579,-1000.0,0.000438,90]
[392771822,1761938058602,-1000.0,0.00044,120]
[392771823,1761938058627,-200.0,0.00044,120]
[392771824,1761938058650,-502.39684698,0.00044633,30]
[392771825,1761938058672,-591.21679118,0.000447,120]
[392771826,1761938058694,-500.0,0.000449,30]
[392771827,1761938058717,-1115.97538957,0.000449,120]
[392771828,1761938058743,-34999.99999997,0.00044933,120]
[392771829,1761938058770,-156.756615,0.00044933,60]
[392771830,1761938058795,-544.93926435,0.00045,120]
[392771831,1761938058819,-238.15558777,0.00045,120]
[392771832,1761938058843,-700.31868489,0.00045,120]
[392771833,1761938058868,-151.50857825,0.00045,120]
[392771834,1761938058892,-7000.33736885,0.00045,30]
[392771835,1761938058916,-428181.42320675,0.00045,120]
[392771836,1761938059051,-142750.80408275,0.00045,120]
[392771837,1761938059075,-200.0,0.00045,120]
[392771838,1761938059098,-2498.29993188,0.00045,120]
[392771839,1761938059123,-293.85068442,0.00045246,60]
[392771841,1761938059148,-1421.77436813,0.000454,120]
[392771842,1761938059173,-741322.5201,0.00045444,30]
[392771843,1761938059198,-420.0,0.00045658,120]
[392771844,1761938059222,-1000.0,0.000458,90]
[392771845,1761938059244,-2736.18,0.000458,30]
[392771846,1761938059267,-500.0,0.00045825,60]
[392771847,1761938059289,-500.0,0.0004587,60]
[392771848,1761938059311,-900.0,0.0004588,120]
[392771849,1761938059334,-200.0,0.00046,120]
[392771850,1761938059357,-500.0,0.00046081,60]
[392771851,1761938059382,-500.0,0.00046113,60]
[392771852,1761938059410,-864.0,0.000463,90]
[392771853,1761938059433,-500.0,0.00046323,60]
[392771854,1761938059456,-500.0,0.00046469,60]
[392771856,1761938059479,-500.0,0.00046508,60]
[392771857,1761938059502,-1000.0,0.00046575,120]
[392771858,1761938059526,-1000.0,0.00046575,120]
[392771859,1761938059551,-1000.0,0.00046575,120]
[392771860,1761938059578,-1000.0,0.00046575,120]
[392771861,1761938059603,-990.83168825,0.00046575,120]
[392771870,1761938077056,-600.0,0.00034958,30]
[392771871,1761938077086,-720.0,0.00038454,90]
[392771872,1761938077116,-864.0,0.000423,90]
[392771873,1761938077143,-1000.0,0.0004653,90]
[392771874,1761938077166,-500.0,0.00046615,60]
[392771875,1761938077189,-1102.16900257,0.000468,120]
[392771876,1761938077216,-500.0,0.00046806,60]
[392771877,1761938077241,-500.0,0.00046812,60]
[392771878,1761938077265,-1000.0,0.00047,120]
[392771879,1761938077288,-500.0,0.00047002,60]
[392771880,1761938077312,-500.0,0.00047098,60]
[392771881,1761938077337,-500.0,0.00047291,60]
[392771882,1761938077363,-156.756615,0.000474,60]
[392771883,1761938077387,-173.786373,0.000474,60]
[392771884,1761938077410,-536198.5605,0.00047444,30]
[392771885,1761938077434,-163.0,0.000476,120]
[392771886,1761938077459,-447.0,0.00047658,120]
[392771887,1761938077485,-50091.3152371,0.000478,120]
[392771888,1761938077509,-200.0,0.00048,120]
[392771889,1761938077532,-7000.0,0.00048,30]
[392771890,1761938077555,-367.0293,0.00048,120]
[392771891,1761938077581,-1000.0,0.00048,120]
[392771892,1761938077604,-1142.0,0.00048,120]
[392771893,1761938077629,-1000.0,0.000488,120]
[392771894,1761938077654,-2025.13794387,0.000488,120]
[392771895,1761938077679,-614.0,0.0004888,120]
[392771896,1761938077701,-600.22717067,0.00049,120]
[392771897,1761938077724,-1000.0,0.00049,120]
[392771898,1761938077748,-14150.40275696,0.00049,120]
[392771899,1761938077773,-2736.18,0.00049,30]
[392771900,1761938077797,-200.0,0.00049238,120]
[392771901,1761938077820,-200.0,0.00049238,120]
[392771902,1761938077844,-200.0,0.00049238,120]
[392771903,1761938077868,-200.0,0.00049238,120]
[392771904,1761938077892,-200.0,0.00049238,120]
[392771905,1761938077918,-204.31860594,0.00049238,120]
[392771906,1761938077944,-1000.0,0.00049315,120]
[392771907,1761938077970,-1000.0,0.00049315,120]
[392771908,1761938077994,-297.69298457,0.00049315,120]
[392771909,1761938078020,-536198.5605,0.00049444,30]
[392771910,1761938078048,-1000.96059474,0.00049589,120]
[392771911,1761938078073,-1000.0,0.00049589,120]
[392771912,1761938078099,-474.0,0.00049658,120]
[392771913,1761938078126,-371.30462119,0.00049999,120]
[392771914,1761938078151,-313.09986884,0.00049999,120]
[392771915,1761938078175,-2000.0,0.0005,120]
[392771916,1761938078199,-200.0,0.0005,120]
[392771917,1761938078224,-3389.34162579,0.0005,120]
[392771918,1761938078249,-1000.0,0.0005,120]
[392771919,1761938078273,-100000.0,0.0005,120]
[392771920,1761938078309,-220.198011,0.0005,60]
[392771921,1761938078336,-2498.29993188,0.0005,120]
[392771922,1761938078363,-11622.17638038,0.00051,120]
[392771923,1761938078388,-2000.0,0.00051,120]
[392771924,1761938078413,-1011.0,0.00051,120]
[392771925,1761938078438,-253.609862,0.00051,85]
[392771926,1761938078466,-1000.0,0.00051183,120]
[392771927,1761938078620,-244.0,0.00051183,120]
[392771928,1761938078647,-7000.0,0.000512,120]
[392771929,1761938078674,-412.0,0.00051538,120]
[392771930,1761938078700,-501.0,0.00051658,120]
[392771931,1761938078726,-163.0,0.000518,120]
[392771932,1761938078750,-200.0,0.00052,120]
[392771933,1761938078777,-2000.0,0.00052,120]
[392771934,1761938078802,-200.0,0.00052,120]
[392771935,1761938078827,-100000.0,0.00052,120]
[392771936,1761938078851,-1137.60801067,0.00052,60]
[392771942,1761938123996,150.0,0.00014595,30]
[392771945,1761938149206,150.0,0.0002589,2]
[392771963,1761938462253,150.0,0.0002589,2]
[392771975,1761938680906,14.38357153,0.00025838,2]
[392771976,1761938680930,137.32441641,0.00025838,2]
[392771997,1761938774658,150.0,0.0002589,2]
[392772234,1761938903450,341.31236311,0.0002,2]
[392772235,1761938906065,9371.37322048,0.0002,2]
[392772236,1761938906086,2879.72645838,0.0002,2]
[392772237,1761938906902,7120.28354162,0.00025,15]
[392772238,1761938906924,10000.01,0.00025,15]
[392772239,1761938906957,10000.01,0.00025,15]
[392772240,1761938906981,10000.01,0.00025,15]
[392772241,1761938907004,10000.01,0.00025,15]
[392772242,1761938907027,9840.75565441,0.00025,15]
[392772243,1761938907971,159.25434559,0.00025,7]
[392772244,1761938907992,291.5831691,0.00025,7]
[392772245,1761938909043,9708.4268309,0.00022,2]
[392772246,1761938909065,8542.10846308,0.00022,2]
[392772247,1761938910440,368.33671088,0.0002,2]
[392772248,1761938911823,1089.56482604,0.00024,2]
[392772249,1761938911847,631.23607287,0.00024,2]
[392772251,1761938916052,4509.48619938,0.0002,2]
[392772252,1761938917374,200.86501866,0.0002,2]
[392772253,1761938918466,615.70742439,0.000215,2]
[392772254,1761938920505,4042.7152847,0.00024142,2]
[392772255,1761938920527,10000.01,0.00024142,2]
[392772256,1761938920549,10000.01,0.00024142,2]
[392772257,1761938920572,10000.01,0.00024142,2]
[392772258,1761938920594,10000.01,0.00024142,2]
[392772259,1761938920616,5957.2447153,0.00024142,2]
[392772260,1761938964567,300.0,0.0002,2]
[392772261,1761938975352,300.0,0.0002,2]
[392772262,1761938985619,300.0,0.0002,2]
[392772264,1761938996342,300.0,0.0002,2]
[392772265,1761939006926,300.0,0.0002,2]
[392772266,1761939011385,269.77606365,0.000253,2]
[392772267,1761939029351,150.0,0.00024991,2]
[392772283,1761939032689,-500.0,0.00026109,2]
[392772284,1761939032699,-398.72112168,0.00026109,2]
[392772285,1761939032711,-101.27887832,0.00026109,2]
[392772286,1761939032720,-500.0,0.00026109,2]
[392772287,1761939032730,-16.85944959,0.00026109,2]
[392772288,1761939032745,-483.14055041,0.00026109,2]
[392772289,1761939032755,-500.0,0.00026109,2]
[392772290,1761939032764,-500.0,0.00026109,2]
[392772291,1761939032773,-606.281836,0.00026109,2]
[392772292,1761939032783,-500.0,0.00026109,2]
[392772293,1761939032793,-314.26356231,0.00026109,2]
[392772294,1761939032802,-500.0,0.00026109,2]
[392772295,1761939032815,-438.03393366,0.00026109,2]
[392772296,1761939032827,-98.07500395,0.00026109,2]
[392772298,1761939032836,-200.0,0.0002611,2]
[392772299,1761939032845,-8218.27718019,0.0002611,2]
[392772300,1761939032856,-20531.0,0.0002611,2]
[392772301,1761939032865,-28351.99439282,0.0002611,2]
[392772303,1761939032875,-4636.39275331,0.00026796,2]
[392772304,1761939032885,-3092.90603087,0.00026896,2]
[392772306,1761939032895,-245.4,0.0002699,10]
[392772308,1761939032904,-204.5,0.0002699,10]
[392772310,1761939032914,-300.0,0.00026999,2]
[392772311,1761939032923,-1200.0,0.00026999,2]
[392772313,1761939032932,-300.0,0.00026999,2]
[392772315,1761939032941,-88522.6979796,0.00027,2]
[392772317,1761939032950,-150.0,0.00027262,2]
[392772319,1761939032959,-608.07572029,0.00027397,2]
[392772321,1761939032969,-502.23150394,0.00027397,2]
[392772322,1761939032978,-50000.0,0.0002789,2]
[392772323,1761939032988,-177.0,0.0002789,2]
[392772324,1761939032998,-998.0,0.00027988,2]
[392772325,1761939033009,-500.0,0.00027989,4]
[392772326,1761939033018,-500.0,0.00028263,4]
[392772327,1761939033027,-500.0,0.00028537,4]
[392772328,1761939033036,-500.0,0.00028811,4]
[392772329,1761939033048,-351.16953969,0.00029,4]
[392772330,1761939033058,-500.0,0.00029085,4]
[392772331,1761939033068,-420.0,0.00029189,2]
[392772332,1761939033078,-366.0,0.00029318,2]
[392772333,1761939033088,-500.0,0.00029358,4]
[392772334,1761939033097,-501.00092771,0.00029358,4]
[392772335,1761939033107,-501.41092423,0.00029358,4]
[392772336,1761939033116,-500.0,0.00029358,4]
[392772337,1761939033126,-501.9594389,0.00029358,4]
[392772338,1761939033135,-502.21513437,0.00029358,4]
[392772339,1761939033144,-500.0,0.00029358,4]
[392772340,1761939033154,-500.0,0.00029358,4]
[392772341,1761939033164,-500.0,0.00029358,4]
[392772342,1761939033173,-500.0,0.00029358,4]
[392772343,1761939033183,-500.0,0.00029358,4]
[392772344,1761939033192,-500.0,0.00029358,4]
[392772345,1761939033202,-500.56172439,0.00029358,4]
[392772347,1761939033212,-420.4107533,0.00029359,4]
[392772348,1761939033222,-316.52260817,0.0002947,20]
[392772350,1761939033232,-154.32,0.00029534,2]
[392772352,1761939033241,-987.09911226,0.00029757,2]
[392772354,1761939033250,-500.0,0.00029839,2]
[392772356,1761939033260,-151.0,0.00029839,2]
[392772358,1761939033269,-151.0,0.00029839,2]
[392772360,1761939033279,-151.0,0.00029839,2]
[392772362,1761939033288,-151.0,0.00029839,2]
[392772364,1761939033303,-151.0,0.00029839,2]
[392772366,1761939033312,-151.0,0.00029839,2]
[392772368,1761939033322,-151.0,0.00029839,2]
[392772370,1761939033332,-151.0,0.00029839,2]
[392772372,1761939033341,-151.0,0.00029839,2]
[392772374,1761939033350,-151.0,0.00029839,2]
[392772375,1761939033360,-151.0,0.00029839,2]
[392772377,1761939033369,-151.0,0.00029839,2]
[392772379,1761939033378,-151.0,0.00029839,2]
[392772381,1761939033387,-151.0,0.00029839,2]
[392772383,1761939033397,-151.0,0.00029839,2]
[392772385,1761939033406,-151.0,0.00029839,2]
[392772387,1761939033416,-151.0,0.00029839,2]
[392772389,1761939033425,-151.0,0.00029839,2]
[392772391,1761939033434,-151.0,0.00029839,2]
[392772393,1761939033443,-151.0,0.00029839,2]
[392772395,1761939033453,-77834.1764935,0.00029846,2]
[392772397,1761939033462,-500.0,0.00029855,4]
[392772399,1761939033472,-500.0,0.00029855,4]
[392772401,1761939033481,-500.0,0.00029855,3]
[392772403,1761939033491,-500.0,0.00029855,4]
[392772405,1761939033500,-500.0,0.00029855,4]
[392772407,1761939033509,-500.0,0.00029855,4]
[392772409,1761939033518,-500.0,0.00029856,4]
[392772411,1761939033527,-500.74662494,0.00029856,4]
[392772413,1761939033537,-593.2,0.00029856,4]
[392772415,1761939033547,-500.0,0.00029856,4]
[392772417,1761939033556,-500.0,0.00029856,4]
[392772419,1761939033569,-500.0,0.00029856,4]
[392772421,1761939033578,-500.0,0.00029856,4]
[392772423,1761939033587,-500.0,0.00029856,4]
[392772425,1761939033596,-500.0,0.00029856,4]
[392772427,1761939033605,-512.72035919,0.00029856,4]
[392772429,1761939033615,-500.0,0.00029856,4]
[392772431,1761939033624,-504.88308267,0.00029856,4]
[392772433,1761939033633,-500.0,0.00029856,4]
[392772435,1761939033643,-500.0,0.00029856,4]
[392772437,1761939033652,-500.0,0.00029856,4]
[392772439,1761939033661,-500.0,0.00029856,4]
[392772441,1761939033671,-500.0,0.00029856,4]
[392772443,1761939033680,-500.0,0.00029856,4]
[392772445,1761939033689,-501.42986027,0.00029856,4]
[392772447,1761939033698,-500.0,0.00029856,4]
[392772449,1761939033708,-502.189935,0.00029856,4]
[392772451,1761939033717,-500.0,0.00029856,4]
[392772453,1761939033727,-500.0,0.00029856,4]
[392772455,1761939033735,-504.26461216,0.00029856,4]
[392772457,1761939033744,-500.0,0.00029856,4]
[392772459,1761939033754,-500.0,0.00029856,4]
[392772461,1761939033763,-501.24544181,0.00029856,4]
[392772463,1761939033773,-500.0,0.00029856,4]
[392772465,1761939033782,-500.0,0.00029856,4]
[392772467,1761939033791,-501.36024166,0.00029856,4]
[392772469,1761939033806,-500.0,0.00029856,4]
[392772471,1761939033818,-503.05194546,0.00029856,4]
[392772473,1761939033827,-500.0,0.00029856,4]
[392772475,1761939033837,-514.02185927,0.00029856,4]
[392772477,1761939033847,-500.0,0.00029856,4]